[Event "Dvaro taure"]
[Site "Taujenai, Lithuania"]
[Date "2021.11.28"]
[Round "6.1"]
[White "Salna, Aleksandras"]
[Black "Laurusas, Tomas"]
[Result "0-1"]
[WhiteElo "2088"]
[BlackElo "2550"]
[PlyCount "78"]
[EventDate "2021.??.??"]
[TimeControl "10+5"]
[WhiteClock "0:01:10"]
[BlackClock "0:01:19"]

1. c4 {[%emt 0:00:01]} e6 {[%emt 0:00:08]} 2. d4 {[%emt 0:00:02]} Nf6 {[%emt 0:
00:02]} 3. Nc3 {[%emt 0:00:02]} Bb4 {[%emt 0:00:00]} 4. Qc2 {[%emt 0:00:03]} d6
{[%emt 0:00:02]} 5. a3 {[%emt 0:00:02]} Bxc3+ {[%emt 0:00:06]} 6. Qxc3 {[%emt
0:00:02]} Nbd7 {[%emt 0:00:04]} 7. Nf3 {[%emt 0:00:10]} b6 {[%emt 0:00:04]} 8.
e3 {[%emt 0:00:05]} Bb7 {[%emt 0:00:00]} 9. Be2 {[%emt 0:00:14]} O-O {[%emt 0:
00:02]} 10. O-O {[%emt 0:00:03]} c5 {[%emt 0:00:02]} 11. b4 {[%emt 0:00:07]}
Rc8 {[%emt 0:00:17]} 12. dxc5 {[%emt 0:00:05]} bxc5 {[%emt 0:00:04]} 13. b5 {
[%emt 0:00:05]} Ne4 {[%emt 0:00:40]} 14. Qc2 {[%emt 0:00:02]} Qf6 {[%emt 0:00:
24]} 15. Bb2 {[%emt 0:00:02]} Qg6 {[%emt 0:00:01]} 16. Bd3 {[%emt 0:00:51]} f5
{[%emt 0:00:03]} 17. Ne1 {[%emt 0:01:27]} e5 {[%emt 0:00:02]} 18. Rd1 {[%emt 0:
00:23]} Ng5 {[%emt 0:01:17]} 19. f4 {[%emt 0:00:30]} Ne4 {[%emt 0:00:13]} 20.
Bxe4 {[%emt 0:00:48]} Bxe4 {[%emt 0:00:10]} 21. Qd2 {[%emt 0:00:02]} Rf6 {
[%emt 0:00:10]} 22. fxe5 {[%emt 0:00:04]} Nxe5 {[%emt 0:00:03]} 23. Bxe5 {
[%emt 0:00:02]} dxe5 {[%emt 0:00:02]} 24. Nf3 {[%emt 0:00:13]} Re8 {[%emt 0:00:
27]} 25. Qa5 {[%emt 0:00:56]} Qh6 {[%emt 0:00:45]} 26. Rd8 {[%emt 0:01:32]}
Qxe3+ {[%emt 0:00:03]} 27. Kh1 {[%emt 0:00:01]} Rff8 {[%emt 0:00:47]} 28. Rxe8
{[%emt 0:00:02]} Rxe8 {[%emt 0:00:00]} 29. Qxa7 {[%emt 0:00:02]} Bxf3 {[%emt 0:
01:52]} 30. gxf3 {[%emt 0:00:02]} Qd3 {[%emt 0:00:03]} 31. Kg2 {[%emt 0:00:23]}
h6 {[%emt 0:00:18]} 32. Qxc5 {[%emt 0:00:18]} Kh8 {[%emt 0:00:52]} 33. Qd5 {
[%emt 0:01:00]} Qxa3 {[%emt 0:00:00]} 34. Rf2 {[%emt 0:00:12]} Qe3 {[%emt 0:01:
14]} 35. Qf7 {[%emt 0:00:50]} Qg5+ {[%emt 0:00:54]} 36. Kh3 {[%emt 0:00:34]}
Re7 {[%emt 0:00:02]} 37. Qf8+ {[%emt 0:00:28]} Kh7 {[%emt 0:00:01]} 38. Qd8 {
[%emt 0:00:08]} e4 {[%emt 0:00:51]} 39. fxe4 {[%emt 0:00:09]} Qg4# {[%emt 0:00:
01]} 0-1

[Event "Dvaro taure"]
[Site "Taujenai, Lithuania"]
[Date "2021.11.28"]
[Round "6.2"]
[White "Kalvaitis, Sigitas"]
[Black "Greicius, Pijus"]
[Result "1-0"]
[WhiteElo "2171"]
[BlackElo "1949"]
[PlyCount "73"]
[EventDate "2021.??.??"]
[TimeControl "10+5"]
[WhiteClock "0:02:21"]
[BlackClock "0:01:08"]

1. e4 {[%emt 0:14:34]} e5 {[%emt 0:00:01]} 2. Nf3 {[%emt 0:00:00]} Nc6 {[%emt
0:00:02]} 3. Bc4 {[%emt 0:00:00]} Nf6 {[%emt 0:00:02]} 4. d3 {[%emt 0:00:00]}
Bc5 {[%emt 0:00:02]} 5. O-O {[%emt 0:00:12]} a6 {[%emt 0:00:02]} 6. c3 {[%emt
0:00:09]} d6 {[%emt 0:00:21]} 7. b4 {[%emt 0:00:05]} Ba7 {[%emt 0:00:00]} 8.
Be3 {[%emt 0:00:15]} O-O {[%emt 0:00:19]} 9. Bxa7 {[%emt 0:00:02]} Rxa7 {[%emt
0:00:01]} 10. Nbd2 {[%emt 0:00:05]} Bg4 {[%emt 0:00:23]} 11. a4 {[%emt 0:00:07]
} d5 {[%emt 0:00:12]} 12. exd5 {[%emt 0:01:03]} Nxd5 {[%emt 0:00:02]} 13. Ne4 {
[%emt 0:00:04]} h6 {[%emt 0:02:40]} 14. h3 {[%emt 0:00:07]} Bh5 {[%emt 0:00:24]
} 15. Ra3 {[%emt 0:03:10]} Nf4 {[%emt 0:00:38]} 16. Ng3 {[%emt 0:00:27]} Bg6 {
[%emt 0:00:26]} 17. Ne1 {[%emt 0:01:13]} Qh4 {[%emt 0:02:01]} 18. Qf3 {[%emt 0:
00:17]} Raa8 {[%emt 0:00:48]} 19. Qe3 {[%emt 0:00:18]} Rad8 {[%emt 0:00:50]}
20. Nf3 {[%emt 0:00:30]} Qe7 {[%emt 0:00:01]} 21. Rd1 {[%emt 0:00:12]} a5 {
[%emt 0:00:24]} 22. Raa1 {[%emt 0:00:08]} axb4 {[%emt 0:00:05]} 23. cxb4 {
[%emt 0:00:00]} Nxb4 {[%emt 0:00:30]} 24. Nxe5 {[%emt 0:00:35]} Nbxd3 {[%emt 0:
00:24]} 25. Nxg6 {[%emt 0:00:13]} Qxe3 {[%emt 0:00:01]} 26. fxe3 {[%emt 0:00:
07]} Nb2 {[%emt 0:00:40]} 27. Ne7+ {[%emt 0:00:17]} Kh7 {[%emt 0:00:06]} 28.
Rxd8 {[%emt 0:00:10]} Rxd8 {[%emt 0:00:01]} 29. Bxf7 {[%emt 0:00:06]} Rd7 {
[%emt 0:00:03]} 30. exf4 {[%emt 0:00:08]} Rxe7 {[%emt 0:00:01]} 31. Bd5 {[%emt
0:00:10]} c6 {[%emt 0:00:01]} 32. Be4+ {[%emt 0:00:01]} Kh8 {[%emt 0:00:02]}
33. a5 {[%emt 0:00:13]} c5 {[%emt 0:00:04]} 34. Rb1 {[%emt 0:00:09]} Nc4 {
[%emt 0:00:01]} 35. a6 {[%emt 0:00:04]} b6 {[%emt 0:00:11]} 36. Bd5 {[%emt 0:
00:03]} Ne3 {[%emt 0:00:07]} 37. Bb7 {[%emt 0:00:06]} 1-0

[Event "Dvaro taure"]
[Site "Taujenai, Lithuania"]
[Date "2021.11.28"]
[Round "6.3"]
[White "Baliasnyj, Timur"]
[Black "Viskelis, Darius"]
[Result "0-1"]
[WhiteElo "2001"]
[BlackElo "1981"]
[PlyCount "35"]
[EventDate "2021.??.??"]
[TimeControl "10+5"]
[WhiteClock "0:03:15"]
[BlackClock "0:01:23"]

1. c4 {[%emt 0:00:02]} e6 {[%emt 0:00:07]} 2. Nf3 {[%emt 0:00:05]} d5 {[%emt 0:
00:03]} 3. g3 {[%emt 0:00:05]} c5 {[%emt 0:00:03]} 4. Bg2 {[%emt 0:00:06]} Nc6
{[%emt 0:00:27]} 5. O-O {[%emt 0:00:03]} d4 {[%emt 0:00:19]} 6. e3 {[%emt 0:00:
01]} e5 {[%emt 0:00:28]} 7. exd4 {[%emt 0:00:02]} exd4 {[%emt 0:00:28]} 8. Re1+
{[%emt 0:01:35]} Be7 {[%emt 0:00:02]} 9. Qe2 {[%emt 0:00:03]} Nf6 {[%emt 0:00:
22]} 10. Ne5 {[%emt 0:00:25]} Nb4 {[%emt 0:03:18]} 11. d3 {[%emt 0:00:45]} O-O
{[%emt 0:00:02]} 12. a3 {[%emt 0:01:05]} Qa5 {[%emt 0:00:44]} 13. Nd2 {[%emt 0:
01:52]} Nc2 {[%emt 0:01:12]} 14. b4 {[%emt 0:00:19]} Qa4 {[%emt 0:00:31]} 15.
Qd1 {[%emt 0:00:10]} cxb4 {[%emt 0:01:18]} 16. Rb1 {[%emt 0:00:58]} bxa3 {
[%emt 0:00:18]} 17. Bxb7 {[%emt 0:00:40]} a2 {[%emt 0:00:25]} 18. Ra1 {[%emt 0:
00:40]} 0-1

[Event "Dvaro taure"]
[Site "Taujenai, Lithuania"]
[Date "2021.11.28"]
[Round "6.4"]
[White "Sumskis, Rimvydas"]
[Black "Povilaitis, Tomas"]
[Result "0-1"]
[WhiteElo "1895"]
[BlackElo "1986"]
[PlyCount "181"]
[EventDate "2021.??.??"]
[TimeControl "10+5"]
[BlackClock "0:00:50"]

1. e4 {[%emt 0:00:06]} c5 {[%emt 0:00:02]} 2. Nc3 {[%emt 0:00:07]} Nc6 {[%emt
0:00:05]} 3. Nf3 {[%emt 0:00:06]} d6 {[%emt 0:00:06]} 4. d4 {[%emt 0:00:15]}
cxd4 {[%emt 0:00:04]} 5. Nxd4 {[%emt 0:00:01]} e5 {[%emt 0:00:02]} 6. Nb3 {
[%emt 0:00:36]} Be6 {[%emt 0:00:40]} 7. Be3 {[%emt 0:00:14]} Nf6 {[%emt 0:00:
07]} 8. Be2 {[%emt 0:00:09]} a5 {[%emt 0:00:19]} 9. a3 {[%emt 0:01:32]} a4 {
[%emt 0:00:14]} 10. Nd2 {[%emt 0:00:02]} Be7 {[%emt 0:00:31]} 11. Nc4 {[%emt 0:
00:22]} O-O {[%emt 0:01:21]} 12. O-O {[%emt 0:00:13]} Rb8 {[%emt 0:00:36]} 13.
Nb6 {[%emt 0:00:49]} Nd7 {[%emt 0:00:16]} 14. Nbd5 {[%emt 0:00:40]} Bg5 {[%emt
0:01:01]} 15. Nxa4 {[%emt 0:00:45]} Bxe3 {[%emt 0:00:04]} 16. Nxe3 {[%emt 0:00:
02]} Nd4 {[%emt 0:00:07]} 17. Nc3 {[%emt 0:00:11]} Qb6 {[%emt 0:00:30]} 18. Rb1
{[%emt 0:00:23]} Rfc8 {[%emt 0:00:27]} 19. Ned5 {[%emt 0:00:04]} Qd8 {[%emt 0:
00:21]} 20. Bd3 {[%emt 0:01:34]} Nc5 {[%emt 0:00:08]} 21. Kh1 {[%emt 0:00:10]}
Nxd3 {[%emt 0:00:10]} 22. Qxd3 {[%emt 0:00:13]} Bxd5 {[%emt 0:00:09]} 23. exd5
{[%emt 0:00:02]} f5 {[%emt 0:01:11]} 24. f4 {[%emt 0:00:06]} Qf6 {[%emt 0:00:
02]} 25. Rbd1 {[%emt 0:00:36]} b5 {[%emt 0:00:12]} 26. Rd2 {[%emt 0:00:19]} b4
{[%emt 0:00:19]} 27. axb4 {[%emt 0:00:05]} Rxb4 {[%emt 0:00:01]} 28. fxe5 {
[%emt 0:00:11]} dxe5 {[%emt 0:00:03]} 29. Ne2 {[%emt 0:00:48]} Nxe2 {[%emt 0:
00:48]} 30. Rxe2 {[%emt 0:00:07]} Rxb2 {[%emt 0:00:03]} 31. d6 {[%emt 0:00:04]}
Rd8 {[%emt 0:00:17]} 32. Qd5+ {[%emt 0:00:24]} Kh8 {[%emt 0:00:39]} 33. Qxe5 {
[%emt 0:00:24]} Qxe5 {[%emt 0:00:04]} 34. Rxe5 {[%emt 0:00:01]} g6 {[%emt 0:00:
46]} 35. Rd5 {[%emt 0:00:15]} Rxc2 {[%emt 0:00:36]} 36. h3 {[%emt 0:00:04]} Rc6
{[%emt 0:00:04]} 37. d7 {[%emt 0:00:08]} Rc7 {[%emt 0:00:01]} 38. Rfd1 {[%emt
0:00:02]} Kg7 {[%emt 0:00:01]} 39. Kh2 {[%emt 0:00:08]} Kf7 {[%emt 0:00:03]}
40. R5d3 {[%emt 0:00:05]} Ke6 {[%emt 0:00:20]} 41. Re1+ {[%emt 0:00:02]} Kf7 {
[%emt 0:00:03]} 42. Red1 {[%emt 0:00:01]} Rc6 {[%emt 0:00:10]} 43. Re1 {[%emt
0:00:12]} Re6 {[%emt 0:00:06]} 44. Red1 {[%emt 0:00:13]} Ke7 {[%emt 0:00:02]}
45. Kg3 {[%emt 0:00:01]} h6 {[%emt 0:00:14]} 46. h4 {[%emt 0:00:03]} Re4 {
[%emt 0:00:04]} 47. Kf3 {[%emt 0:00:02]} Rxh4 {[%emt 0:00:17]} 48. Re1+ {[%emt
0:00:07]} Re4 {[%emt 0:00:13]} 49. Rxe4+ {[%emt 0:00:17]} fxe4+ {[%emt 0:00:01]
} 50. Kxe4 {[%emt 0:00:02]} Rxd7 {[%emt 0:00:01]} 51. Ra3 {[%emt 0:00:12]} Kf6
{[%emt 0:00:02]} 52. Kf4 {[%emt 0:00:05]} Rd4+ {[%emt 0:00:01]} 53. Kf3 {[%emt
0:00:03]} Rd5 {[%emt 0:00:04]} 54. g3 {[%emt 0:00:04]} Kf5 {[%emt 0:00:05]} 55.
Rb3 {[%emt 0:00:02]} h5 {[%emt 0:00:09]} 56. Ra3 {[%emt 0:00:01]} Rb5 {[%emt 0:
00:16]} 57. Rc3 {[%emt 0:00:02]} g5 {[%emt 0:00:06]} 58. Ra3 {[%emt 0:00:34]}
Ke5 {[%emt 0:00:02]} 59. Rc3 {[%emt 0:00:09]} Kd4 {[%emt 0:00:08]} 60. Ra3 {
[%emt 0:00:01]} Rf5+ {[%emt 0:00:03]} 61. Kg2 {[%emt 0:00:01]} Rc5 {[%emt 0:00:
07]} 62. Ra4+ {[%emt 0:00:03]} Ke3 {[%emt 0:00:08]} 63. Ra3+ {[%emt 0:00:01]}
Ke4 {[%emt 0:00:10]} 64. Ra4+ {[%emt 0:00:01]} Kf5 {[%emt 0:00:01]} 65. Ra2 {
[%emt 0:00:02]} Rc4 {[%emt 0:00:05]} 66. Rb2 {[%emt 0:00:02]} Rc5 {[%emt 0:00:
17]} 67. Ra2 {[%emt 0:00:01]} Rd5 {[%emt 0:00:01]} 68. Rb2 {[%emt 0:00:01]} Ke4
{[%emt 0:00:03]} 69. Ra2 {[%emt 0:00:04]} Ke3 {[%emt 0:00:02]} 70. Ra3+ {[%emt
0:00:04]} Ke4 {[%emt 0:00:08]} 71. Ra2 {[%emt 0:00:02]} g4 {[%emt 0:00:01]} 72.
Rb2 {[%emt 0:00:06]} Ke3 {[%emt 0:00:01]} 73. Rb3+ {[%emt 0:00:09]} Rd3 {[%emt
0:00:01]} 74. Rb5 {[%emt 0:00:05]} Rd2+ {[%emt 0:00:00]} 75. Kg1 {[%emt 0:00:
07]} Kf3 {[%emt 0:00:08]} 76. Rxh5 {[%emt 0:00:03]} Kxg3 {[%emt 0:00:08]} 77.
Kf1 {[%emt 0:00:02]} Rf2+ {[%emt 0:00:11]} 78. Ke1 {[%emt 0:00:07]} Kg2 {[%emt
0:00:08]} 79. Rg5 {[%emt 0:00:04]} g3 {[%emt 0:00:03]} 80. Rh5 {[%emt 0:00:19]}
Rf1+ {[%emt 0:00:01]} 81. Ke2 {[%emt 0:00:02]} Rf8 {[%emt 0:00:01]} 82. Rh7 {
[%emt 0:00:22]} Re8+ {[%emt 0:00:01]} 83. Kd3 {[%emt 0:00:01]} Kg1 {[%emt 0:00:
02]} 84. Rg7 {[%emt 0:00:02]} g2 {[%emt 0:00:01]} 85. Rh7 {[%emt 0:00:05]} Re5
{[%emt 0:00:09]} 86. Rh8 {[%emt 0:00:08]} Kf2 {[%emt 0:00:02]} 87. Rf8+ {[%emt
0:00:07]} Kg3 {[%emt 0:00:04]} 88. Rg8+ {[%emt 0:00:01]} Kf3 {[%emt 0:00:06]}
89. Rf8+ {[%emt 0:00:02]} Kg4 {[%emt 0:00:02]} 90. Rg8+ {[%emt 0:00:10]} Rg5 {
[%emt 0:00:01]} 91. Kd4 {[%emt 0:00:03]} 0-1

[Event "Dvaro taure"]
[Site "Taujenai, Lithuania"]
[Date "2021.11.28"]
[Round "6.5"]
[White "Juknis, Paulius"]
[Black "Bagdanskis, Dangis"]
[Result "1/2-1/2"]
[WhiteElo "2059"]
[BlackElo "1861"]
[PlyCount "63"]
[EventDate "2021.??.??"]
[TimeControl "10+5"]
[WhiteClock "0:02:04"]
[BlackClock "0:05:55"]

1. e4 {[%emt 0:00:00]} e5 {[%emt 0:00:08]} 2. Bc4 {[%emt 0:00:03]} Nf6 {[%emt
0:00:02]} 3. d4 {[%emt 0:00:01]} exd4 {[%emt 0:00:04]} 4. Nf3 {[%emt 0:00:00]}
d6 {[%emt 0:00:03]} 5. Ng5 {[%emt 0:00:10]} d5 {[%emt 0:00:02]} 6. exd5 {[%emt
0:00:14]} Bd6 {[%emt 0:00:28]} 7. O-O {[%emt 0:01:23]} O-O {[%emt 0:00:02]} 8.
Qxd4 {[%emt 0:00:34]} Nc6 9. Qh4 {[%emt 0:00:12]} Ne5 {[%emt 0:00:02]} 10. Bb3
{[%emt 0:00:21]} Bf5 {[%emt 0:00:46]} 11. Nd2 {[%emt 0:01:12]} h6 {[%emt 0:00:
02]} 12. Ngf3 {[%emt 0:00:04]} Ng6 {[%emt 0:00:58]} 13. Qd4 {[%emt 0:00:40]}
Nf4 {[%emt 0:00:11]} 14. Kh1 {[%emt 0:00:41]} Re8 {[%emt 0:00:09]} 15. Nc4 {
[%emt 0:00:13]} Ne2 {[%emt 0:00:05]} 16. Qd1 {[%emt 0:00:15]} Bg4 {[%emt 0:01:
21]} 17. Qd3 {[%emt 0:00:08]} Bf4 {[%emt 0:01:16]} 18. Be3 {[%emt 0:01:13]}
Bxf3 {[%emt 0:00:17]} 19. gxf3 {[%emt 0:00:04]} Qxd5 {[%emt 0:00:30]} 20. Qxd5
{[%emt 0:00:16]} Nxd5 {[%emt 0:00:03]} 21. Rfe1 {[%emt 0:00:20]} b5 {[%emt 0:
00:17]} 22. Rxe2 {[%emt 0:00:34]} bxc4 {[%emt 0:00:02]} 23. Bxc4 {[%emt 0:00:
01]} Nxe3 {[%emt 0:00:02]} 24. fxe3 {[%emt 0:00:03]} Rxe3 {[%emt 0:00:04]} 25.
Rxe3 {[%emt 0:00:23]} Bxe3 {[%emt 0:00:02]} 26. Rd1 {[%emt 0:00:02]} Rf8 {
[%emt 0:00:44]} 27. Rd7 {[%emt 0:00:03]} Bb6 {[%emt 0:00:01]} 28. a4 {[%emt 0:
00:04]} a5 {[%emt 0:00:01]} 29. Kg2 {[%emt 0:00:23]} g5 {[%emt 0:00:07]} 30. c3
{[%emt 0:00:06]} Kg7 {[%emt 0:00:02]} 31. b4 {[%emt 0:00:04]} Kg6 {[%emt 0:00:
01]} 32. Rd5 {[%emt 0:00:45]} 1/2-1/2

[Event "Dvaro taure"]
[Site "Taujenai, Lithuania"]
[Date "2021.11.28"]
[Round "6.6"]
[White "Bazilius, Augustinas"]
[Black "Valantiejus, Vaidotas"]
[Result "1/2-1/2"]
[WhiteElo "1911"]
[BlackElo "1962"]
[PlyCount "49"]
[EventDate "2021.??.??"]
[TimeControl "10+5"]
[WhiteClock "0:01:24"]
[BlackClock "0:00:40"]

1. Nf3 {[%emt 0:00:02]} d5 {[%emt 0:00:02]} 2. d4 {[%emt 0:00:00]} e6 {[%emt 0:
00:04]} 3. c4 {[%emt 0:00:02]} c5 {[%emt 0:00:04]} 4. dxc5 {[%emt 0:00:19]}
Bxc5 {[%emt 0:00:05]} 5. e3 {[%emt 0:00:07]} Nf6 {[%emt 0:00:07]} 6. Be2 {
[%emt 0:00:02]} O-O {[%emt 0:00:11]} 7. O-O {[%emt 0:00:01]} a6 {[%emt 0:00:50]
} 8. a4 {[%emt 0:00:12]} Nc6 {[%emt 0:00:17]} 9. Nc3 {[%emt 0:00:01]} Ba7 {
[%emt 0:00:50]} 10. b3 {[%emt 0:00:15]} dxc4 {[%emt 0:02:48]} 11. Ba3 {[%emt 0:
01:45]} Re8 {[%emt 0:00:27]} 12. Qxd8 {[%emt 0:01:13]} Rxd8 {[%emt 0:00:03]}
13. Bxc4 {[%emt 0:00:00]} Bd7 {[%emt 0:00:38]} 14. Rad1 {[%emt 0:01:54]} Be8 {
[%emt 0:00:06]} 15. b4 {[%emt 0:01:01]} Rac8 {[%emt 0:00:48]} 16. Rxd8 {[%emt
0:00:04]} Nxd8 {[%emt 0:00:47]} 17. Nd2 {[%emt 0:00:00]} Nc6 {[%emt 0:01:59]}
18. Rc1 {[%emt 0:00:35]} Ne5 {[%emt 0:00:12]} 19. Be2 {[%emt 0:02:22]} h6 {
[%emt 0:00:22]} 20. b5 {[%emt 0:00:02]} axb5 {[%emt 0:00:09]} 21. Nxb5 {[%emt
0:00:12]} Rxc1+ {[%emt 0:00:02]} 22. Bxc1 {[%emt 0:00:01]} Bb6 {[%emt 0:00:30]}
23. Nc4 {[%emt 0:00:16]} Nxc4 {[%emt 0:00:05]} 24. Bxc4 {[%emt 0:00:01]} Bc6 {
[%emt 0:00:06]} 25. Bb2 {[%emt 0:00:10]} 1/2-1/2

[Event "Dvaro taure"]
[Site "Taujenai, Lithuania"]
[Date "2021.11.28"]
[Round "6.7"]
[White "Bagvilas, Lukas"]
[Black "Posaskov, Nikita"]
[Result "1-0"]
[WhiteElo "2022"]
[BlackElo "1971"]
[PlyCount "135"]
[EventDate "2021.??.??"]
[TimeControl "10+5"]
[WhiteClock "0:00:14"]
[BlackClock "0:00:09"]

1. e4 {[%emt 0:00:00]} c6 {[%emt 0:00:00]} 2. Nc3 {[%emt 0:00:06]} d5 {[%emt 0:
00:00]} 3. Nf3 {[%emt 0:00:01]} dxe4 {[%emt 0:00:01]} 4. Nxe4 {[%emt 0:00:03]}
Nf6 {[%emt 0:00:00]} 5. Qe2 {[%emt 0:00:06]} Nxe4 {[%emt 0:00:02]} 6. Qxe4 {
[%emt 0:00:00]} Qd5 {[%emt 0:00:00]} 7. Qf4 {[%emt 0:00:36]} Qf5 {[%emt 0:00:
33]} 8. d3 {[%emt 0:01:42]} g6 {[%emt 0:00:21]} 9. Qxf5 Bxf5 {[%emt 0:00:00]}
10. Be3 {[%emt 0:00:02]} Bg7 {[%emt 0:00:04]} 11. O-O-O {[%emt 0:00:03]} Na6 {
[%emt 0:00:18]} 12. Bd4 {[%emt 0:00:40]} O-O {[%emt 0:00:14]} 13. Be2 {[%emt 0:
00:07]} Nb4 {[%emt 0:00:57]} 14. a3 {[%emt 0:00:10]} Nd5 {[%emt 0:00:00]} 15.
Bxg7 {[%emt 0:00:04]} Kxg7 {[%emt 0:00:02]} 16. Nd4 {[%emt 0:00:03]} Bd7 {
[%emt 0:00:02]} 17. Bf3 {[%emt 0:00:03]} e5 {[%emt 0:00:05]} 18. Nb3 {[%emt 0:
00:03]} f5 {[%emt 0:02:12]} 19. Nc5 {[%emt 0:00:26]} Bc8 {[%emt 0:00:01]} 20.
Rhe1 {[%emt 0:00:34]} Kf6 {[%emt 0:00:06]} 21. g3 {[%emt 0:01:02]} b6 {[%emt 0:
00:20]} 22. Nb3 {[%emt 0:00:03]} Bb7 {[%emt 0:00:36]} 23. Bg2 {[%emt 0:00:28]}
Rad8 {[%emt 0:01:10]} 24. Re2 {[%emt 0:02:07]} Rfe8 {[%emt 0:01:39]} 25. Rde1 {
[%emt 0:00:02]} g5 {[%emt 0:00:33]} 26. Nd2 {[%emt 0:00:24]} g4 {[%emt 0:00:09]
} 27. Nc4 {[%emt 0:00:02]} c5 {[%emt 0:01:00]} 28. Nxe5 {[%emt 0:00:05]} Rf8 {
[%emt 0:01:40]} 29. Nc4 {[%emt 0:00:39]} Bc8 {[%emt 0:00:13]} 30. Bxd5 {[%emt
0:00:10]} Rxd5 31. Re7 {[%emt 0:00:16]} Rf7 {[%emt 0:00:01]} 32. Rxf7+ {[%emt
0:00:05]} Kxf7 {[%emt 0:00:01]} 33. Kd2 {[%emt 0:00:51]} Ba6 {[%emt 0:00:23]}
34. Ne3 {[%emt 0:00:06]} Re5 {[%emt 0:00:07]} 35. Ng2 {[%emt 0:00:03]} Rxe1 {
[%emt 0:00:02]} 36. Kxe1 {[%emt 0:00:01]} Bb7 {[%emt 0:00:02]} 37. Nf4 {[%emt
0:00:02]} Kf6 {[%emt 0:00:00]} 38. Kd2 {[%emt 0:00:04]} Ke5 {[%emt 0:00:12]}
39. Ke3 {[%emt 0:00:02]} b5 {[%emt 0:00:03]} 40. c3 {[%emt 0:00:03]} a5 {[%emt
0:00:01]} 41. d4+ {[%emt 0:00:03]} cxd4+ {[%emt 0:00:01]} 42. cxd4+ {[%emt 0:
00:02]} Kd6 {[%emt 0:00:12]} 43. b4 {[%emt 0:00:22]} axb4 {[%emt 0:00:08]} 44.
axb4 {[%emt 0:00:02]} Be4 {[%emt 0:00:01]} 45. Kd2 {[%emt 0:00:11]} Bf3 {[%emt
0:00:10]} 46. Kc3 {[%emt 0:00:02]} Be4 {[%emt 0:00:01]} 47. Nh5 {[%emt 0:00:33]
} Ke6 {[%emt 0:00:03]} 48. Kd2 {[%emt 0:00:09]} Kf7 {[%emt 0:00:16]} 49. Ke3 {
[%emt 0:00:03]} Kg6 {[%emt 0:00:00]} 50. Nf4+ {[%emt 0:00:02]} Kf6 51. Ne2 {
[%emt 0:00:01]} Bc6 {[%emt 0:00:17]} 52. Kf4 {[%emt 0:00:03]} Bd7 {[%emt 0:00:
06]} 53. Nc3 {[%emt 0:00:08]} h6 {[%emt 0:00:01]} 54. d5 {[%emt 0:00:06]} Be8 {
[%emt 0:00:03]} 55. Ne2 {[%emt 0:00:13]} Bf7 {[%emt 0:00:13]} 56. Nd4 {[%emt 0:
00:02]} Bxd5 {[%emt 0:00:01]} 57. Nxb5 {[%emt 0:00:02]} Bb7 {[%emt 0:00:09]}
58. Nd4 {[%emt 0:00:02]} Be4 {[%emt 0:00:03]} 59. b5 {[%emt 0:00:04]} h5 {
[%emt 0:00:12]} 60. f3 {[%emt 0:00:20]} gxf3 {[%emt 0:00:01]} 61. Nxf3 {[%emt
0:00:02]} Bb7 {[%emt 0:00:06]} 62. Nd4 {[%emt 0:00:08]} Be4 {[%emt 0:00:01]}
63. Nc6 {[%emt 0:00:02]} Ke6 {[%emt 0:00:07]} 64. Nd4+ {[%emt 0:00:03]} Kf6 {
[%emt 0:00:00]} 65. b6 {[%emt 0:00:07]} Kg6 {[%emt 0:00:10]} 66. h3 {[%emt 0:
00:11]} Kf6 {[%emt 0:00:03]} 67. h4 {[%emt 0:00:02]} Ke7 {[%emt 0:00:11]} 68.
Nxf5+ {[%emt 0:00:02]} 1-0

[Event "Dvaro taure"]
[Site "Taujenai, Lithuania"]
[Date "2021.11.28"]
[Round "6.8"]
[White "Stremavicius, Pijus"]
[Black "Breikss, Peteris"]
[Result "1-0"]
[WhiteElo "2175"]
[BlackElo "1622"]
[PlyCount "111"]
[EventDate "2021.??.??"]
[TimeControl "10+5"]
[WhiteClock "0:04:54"]
[BlackClock "0:02:16"]

1. e4 {[%emt 0:03:35]} c5 {[%emt 0:00:02]} 2. Nf3 {[%emt 0:00:01]} Nc6 {[%emt
0:00:02]} 3. Bb5 {[%emt 0:00:00]} g6 {[%emt 0:00:07]} 4. O-O {[%emt 0:00:02]}
Bg7 {[%emt 0:00:04]} 5. Re1 {[%emt 0:00:11]} Nf6 {[%emt 0:00:05]} 6. Nc3 {
[%emt 0:00:06]} O-O {[%emt 0:00:45]} 7. e5 {[%emt 0:00:11]} Ne8 {[%emt 0:00:34]
} 8. d3 {[%emt 0:00:11]} d5 {[%emt 0:00:30]} 9. exd6 {[%emt 0:00:08]} Nxd6 {
[%emt 0:00:24]} 10. Bxc6 {[%emt 0:00:05]} bxc6 {[%emt 0:00:02]} 11. h3 {[%emt
0:00:21]} Ba6 {[%emt 0:01:29]} 12. Bg5 {[%emt 0:00:03]} f6 {[%emt 0:00:20]} 13.
Be3 {[%emt 0:00:02]} Qa5 {[%emt 0:00:40]} 14. Nd2 {[%emt 0:00:29]} c4 {[%emt 0:
00:48]} 15. d4 {[%emt 0:00:11]} Nf5 {[%emt 0:00:36]} 16. Qf3 {[%emt 0:00:11]}
Qb6 {[%emt 0:00:26]} 17. Na4 {[%emt 0:00:22]} Qb5 {[%emt 0:00:14]} 18. Nc5 {
[%emt 0:00:05]} Nxe3 {[%emt 0:00:25]} 19. Qxe3 {[%emt 0:00:15]} e5 {[%emt 0:00:
07]} 20. Nxa6 {[%emt 0:00:07]} Qxa6 {[%emt 0:00:03]} 21. dxe5 {[%emt 0:00:01]}
fxe5 {[%emt 0:00:05]} 22. Ne4 {[%emt 0:00:03]} Qb5 {[%emt 0:00:09]} 23. b3 {
[%emt 0:00:02]} cxb3 {[%emt 0:00:07]} 24. cxb3 {[%emt 0:00:04]} a5 {[%emt 0:00:
10]} 25. Rac1 {[%emt 0:00:03]} Ra6 {[%emt 0:00:19]} 26. Rc5 {[%emt 0:00:07]}
Qb4 {[%emt 0:00:09]} 27. Rc4 {[%emt 0:00:02]} Qa3 {[%emt 0:00:11]} 28. Nc5 {
[%emt 0:00:02]} Raa8 {[%emt 0:00:14]} 29. Ne6 {[%emt 0:00:02]} Rf7 {[%emt 0:00:
07]} 30. Nxg7 {[%emt 0:00:19]} Rxg7 {[%emt 0:00:08]} 31. Ra4 {[%emt 0:00:51]}
Qb2 {[%emt 0:00:08]} 32. Qxe5 {[%emt 0:00:03]} Qxe5 {[%emt 0:00:05]} 33. Rxe5 {
[%emt 0:00:00]} Rd7 {[%emt 0:00:08]} 34. Rexa5 {[%emt 0:00:07]} Rxa5 {[%emt 0:
00:01]} 35. Rxa5 {[%emt 0:00:00]} Rd1+ {[%emt 0:00:06]} 36. Kh2 {[%emt 0:00:02]
} Rd2 {[%emt 0:00:11]} 37. Kg3 {[%emt 0:00:01]} Kf7 {[%emt 0:00:03]} 38. Kf3 {
[%emt 0:00:03]} Ke6 {[%emt 0:00:05]} 39. Ke3 {[%emt 0:00:06]} Rb2 {[%emt 0:00:
03]} 40. g4 {[%emt 0:00:06]} h6 {[%emt 0:00:09]} 41. h4 {[%emt 0:00:00]} Kd6 {
[%emt 0:00:09]} 42. Ra8 {[%emt 0:00:13]} Ke6 {[%emt 0:00:13]} 43. f3 {[%emt 0:
00:14]} Rh2 {[%emt 0:00:06]} 44. Rg8 {[%emt 0:00:02]} Kf7 {[%emt 0:00:19]} 45.
Rc8 {[%emt 0:00:02]} Rxa2 {[%emt 0:00:09]} 46. Rxc6 {[%emt 0:00:03]} Rb2 {
[%emt 0:00:17]} 47. Rb6 {[%emt 0:00:04]} Rb1 {[%emt 0:00:08]} 48. Kf4 {[%emt 0:
00:03]} Rb2 {[%emt 0:00:05]} 49. h5 {[%emt 0:00:07]} gxh5 {[%emt 0:00:06]} 50.
gxh5 {[%emt 0:00:01]} Rh2 {[%emt 0:00:06]} 51. Rxh6 {[%emt 0:00:03]} Rh4+ {
[%emt 0:00:04]} 52. Kg5 {[%emt 0:00:06]} Rb4 {[%emt 0:00:02]} 53. Rf6+ {[%emt
0:00:02]} Kg7 {[%emt 0:00:04]} 54. h6+ {[%emt 0:00:01]} Kg8 {[%emt 0:00:07]}
55. Kg6 {[%emt 0:00:04]} Rxb3 {[%emt 0:00:09]} 56. h7+ {[%emt 0:00:01]} 1-0